fUSD/lending_fUSD_20240212
["ID","MTS","AMOUNT","RATE_DAILY","PERIOD"]
[313887830,1707769917115,-2013.56,0.00036438,2]
[313887831,1707769917125,-1012.67,0.00036438,2]
[313887832,1707769917134,-1445.06,0.00036438,2]
[313887833,1707769917143,-500.0,0.00036438,2]
[313887834,1707769917153,-500.0,0.00036438,2]
[313887835,1707769917162,-218.34842916,0.00036438,2]
[313887836,1707769917171,-1677.14,0.00036438,2]
[313887837,1707769917181,-951.75,0.00036438,2]
[313887838,1707769917191,-1575.25,0.00036438,2]
[313887839,1707769917200,-1311.14,0.00036438,2]
[313887840,1707769917210,-1386.13,0.00036438,2]
[313887841,1707769917221,-893.85,0.00036438,2]
[313887842,1707769917231,-1280.91,0.00036438,2]
[313887843,1707769917240,-500.0,0.00036438,2]
[313887844,1707769917251,-500.0,0.00036438,2]
[313887845,1707769917260,-7777.87,0.00036438,2]
[313887846,1707769917269,-501.05,0.00036438,2]
[313887847,1707769917279,-502.28,0.00036438,2]
[313887848,1707769917289,-814.8,0.00036438,2]
[313887849,1707769917298,-961.32,0.00036438,2]
[313887850,1707769917307,-389.26302215,0.00036438,2]
[313887851,1707769917317,-500.0,0.00036438,2]
[313887852,1707769917326,-551.08,0.00036438,2]
[313887853,1707769917335,-500.0,0.00036438,2]
[313887854,1707769917344,-500.0,0.00036438,2]
[313887855,1707769917353,-812.86,0.00036438,2]
[313887856,1707769917362,-551.54651001,0.00036438,2]
[313887857,1707769917372,-512.59,0.00036438,2]
[313887858,1707769917382,-1261.01,0.00036438,2]
[313887859,1707769917392,-529.62,0.00036438,2]
[313887860,1707769917401,-5713.47,0.00036438,2]
[313887861,1707769917410,-5782.92,0.00036438,2]
[313887862,1707769917421,-3592.16,0.00036438,2]
[313887863,1707769917431,-500.0,0.00036438,2]
[313887864,1707769917440,-500.0,0.00036438,2]
[313887865,1707769917451,-1417.96,0.00036438,2]
[313887866,1707769917460,-1507.74,0.00036438,2]
[313887867,1707769917469,-500.0,0.00036438,2]
[313887868,1707769917478,-500.0,0.00036438,2]
[313887869,1707769917488,-2719.11,0.00036438,2]
[313887870,1707769917497,-735.15,0.00036438,2]
[313887871,1707769917506,-1563.36,0.00036438,2]
[313887872,1707769917515,-564.31,0.00036438,2]
[313887873,1707769917524,-1284.95,0.00036438,2]
[313887874,1707769917533,-953.13,0.00036438,2]
[313887875,1707769917542,-209.71,0.00036438,2]
[313887876,1707769917552,-503.01,0.00036438,2]
[313887877,1707769917563,-705.93,0.00036438,2]
[313887878,1707769917575,-2474.64,0.00036438,2]
[313887879,1707769917585,-2229.26,0.00036438,2]
[313887880,1707769917594,-500.0,0.00036438,2]
[313887881,1707769917603,-1299.67,0.00036438,2]
[313887882,1707769917611,-1347.04,0.00036438,2]
[313887883,1707769917621,-500.0,0.00036438,2]
[313887884,1707769917631,-1798.72,0.00036438,2]
[313887885,1707769917641,-1180.11,0.00036438,2]
[313887886,1707769917652,-2115.54,0.00036438,2]
[313887887,1707769917662,-513.48,0.00036438,2]
[313887888,1707769917671,-500.0,0.00036438,2]
[313887889,1707769917680,-3264.57,0.00036438,2]
[313887890,1707769917690,-3140.53,0.00036438,2]
[313887891,1707769917701,-511.99,0.00036438,2]
[313887892,1707769917710,-4051.49,0.00036438,2]
[313887893,1707769917719,-1799.2,0.00036438,2]
[313887894,1707769917729,-1680.38,0.00036438,2]
[313887895,1707769917738,-978.39,0.00036438,2]
[313887896,1707769917748,-522.7,0.00036438,2]
[313887897,1707769917757,-207.6,0.00036438,2]
[313887898,1707769917766,-4240.45,0.00036438,2]
[313887899,1707769917776,-500.0,0.00036438,2]
[313887900,1707769917785,-573.56,0.00036438,2]
[313887901,1707769917794,-163.18,0.00036438,2]
[313887902,1707769917804,-5000.001001,0.0003648,20]
[313887903,1707769917813,-200.0,0.000365,10]
[313887904,1707769917822,-153.8,0.000365,3]
[313887905,1707769917832,-153.8,0.000365,3]
[313887906,1707769917841,-153.8,0.000365,3]
[313887907,1707769917851,-153.8,0.000365,3]
[313887908,1707769917860,-153.8,0.000365,3]
[313887909,1707769917869,-153.8,0.000365,3]
[313887910,1707769917879,-1000.0,0.00036508,10]
[313887911,1707769917888,-1000.0,0.00036508,10]
[313887912,1707769917898,-1000.0,0.00036508,10]
[313887913,1707769917907,-153.60645692,0.00036541,2]
[313887914,1707769917916,-19536.0,0.0003655,5]
[313887915,1707769917926,-5000.0,0.0003658,21]
[313887916,1707769917935,-154.16,0.00036583,2]
[313887917,1707769917947,-35674.71,0.000366,7]
[313887918,1707769917956,-2248.32,0.000366,7]
[313887919,1707769917966,-14641.06,0.000366,7]
[313887920,1707769917975,-5000.0,0.0003668,22]
[313887921,1707769917985,-1333.0,0.0003669,2]
[313887922,1707769917994,-200.0,0.000367,10]
[313887923,1707769918003,-500.0,0.00036712,2]
[313887924,1707769918012,-500.0,0.00036712,2]
[313887925,1707769918021,-500.0,0.00036712,2]
[313887926,1707769918031,-274.25205619,0.00036712,2]
[313887927,1707769918040,-500.0,0.00036712,2]
[313887928,1707769918049,-500.0,0.00036712,2]
[313887929,1707769918059,-500.0,0.00036712,2]
[313887930,1707769918068,-500.0,0.00036712,2]
[313887931,1707769918077,-500.0,0.00036712,2]
[313887932,1707769918086,-500.0,0.00036712,2]
[313887933,1707769918095,-639.80604486,0.00036712,2]
[313887934,1707769918103,-966.32,0.00036712,2]
[313887935,1707769918112,-500.0,0.00036712,2]
[313887936,1707769918121,-807.54,0.00036712,2]
[313887937,1707769918130,-500.0,0.00036712,2]
[313887938,1707769918139,-500.0,0.00036712,2]
[313887939,1707769918148,-500.0,0.00036712,2]
[313887940,1707769918157,-509.91,0.00036712,2]
[313887941,1707769918166,-500.0,0.00036712,2]
[313887942,1707769918176,-500.0,0.00036712,2]
[313887943,1707769918185,-500.22,0.00036712,2]
[313887944,1707769918195,-353.32341173,0.00036712,2]
[313887945,1707769918204,-452.59,0.00036712,2]
[313887946,1707769918212,-580.77,0.00036712,2]
[313887947,1707769918222,-500.0,0.00036712,2]
[313887948,1707769918231,-952.06,0.00036712,2]
[313887949,1707769918240,-500.0,0.00036712,2]
[313887950,1707769918249,-500.0,0.00036712,2]
[313887951,1707769918259,-500.0,0.00036712,2]
[313887952,1707769918268,-500.0,0.00036712,2]
[313887953,1707769918277,-538.47,0.00036712,2]
[313887954,1707769918286,-500.0,0.00036712,2]
[313887955,1707769918296,-1235.07,0.00036712,2]
[313887956,1707769918305,-500.0,0.00036712,2]
[313887957,1707769918314,-1080.75,0.00036712,2]
[313887958,1707769918323,-530.79,0.00036712,2]
[313887959,1707769918333,-728.15,0.00036712,2]
[313887960,1707769918342,-796.14,0.00036712,2]
[313887961,1707769918352,-588.98,0.00036712,2]
[313887962,1707769918361,-5409.76,0.00036712,2]
[313887963,1707769918371,-500.0,0.00036712,2]
[313887964,1707769918380,-500.0,0.00036712,2]
[313887965,1707769918389,-1331.32,0.00036712,2]
[313887966,1707769918399,-917.05,0.00036712,2]
[313887967,1707769918407,-3280.01,0.00036712,2]
[313887968,1707769918416,-9977.66,0.00036712,2]
[313887969,1707769918426,-500.0,0.00036712,2]
[313887970,1707769918434,-235.13,0.00036712,2]
[313887971,1707769918444,-4143.77,0.00036712,2]
[313887972,1707769918453,-5964.37,0.00036712,2]
[313887973,1707769918462,-561.39,0.00036712,2]
[313887974,1707769918471,-695.09,0.00036712,2]
[313887975,1707769918481,-561.48,0.00036712,2]
[313887976,1707769918490,-843.63,0.00036712,2]
[313887977,1707769918499,-984.81,0.00036712,2]
[313887978,1707769918508,-500.0,0.00036712,2]
[313887979,1707769918518,-1158.95,0.00036712,2]
[313887980,1707769918527,-500.0,0.00036712,2]
[313887981,1707769918535,-500.0,0.00036712,2]
[313887982,1707769918545,-500.0,0.00036712,2]
[313887983,1707769918554,-2406.89,0.00036712,2]
[313887984,1707769918563,-578.56,0.00036712,2]
[313887985,1707769918576,-500.0,0.00036712,2]
[313887986,1707769918586,-819.76,0.00036712,2]
[313887987,1707769918595,-500.0,0.00036712,2]
[313887988,1707769918604,-1375.77,0.00036712,2]
[313887989,1707769918614,-4244.4,0.00036712,2]
[313887990,1707769918623,-500.0,0.00036712,2]
[313887991,1707769918632,-500.0,0.00036712,2]
[313887992,1707769918641,-500.0,0.00036712,2]
[313887993,1707769918651,-500.0,0.00036712,2]
[313887994,1707769918661,-846.93,0.00036712,2]
[313887995,1707769918670,-356.88170996,0.00036712,2]
[313887996,1707769918679,-3071.04,0.00036712,2]
[313887997,1707769918688,-728.9,0.00036712,2]
[313887998,1707769918698,-626.31,0.00036712,2]
[313887999,1707769918707,-616.73,0.00036712,2]
[313888000,1707769918716,-500.0,0.00036712,2]
[313888001,1707769918725,-560.54,0.00036712,2]
[313888002,1707769918735,-1820.56,0.00036712,2]
[313888003,1707769918747,-743.91,0.00036712,2]
[313888004,1707769918757,-500.0,0.00036712,2]
[313888005,1707769918776,-735.16,0.00036712,2]
[313888006,1707769918787,-1028.39,0.00036712,2]
[313888007,1707769918797,-1049.27,0.00036712,2]
[313888008,1707769918806,-500.0,0.00036712,2]
[313888009,1707769918816,-4338.57,0.00036712,2]
[313888010,1707769918826,-2013.56,0.00036712,2]
[313888011,1707769918835,-1012.67,0.00036712,2]
[313888012,1707769918845,-1445.06,0.00036712,2]
[313888013,1707769918854,-500.0,0.00036712,2]
[313888014,1707769918864,-500.0,0.00036712,2]
[313888015,1707769918873,-1677.14,0.00036712,2]
[313888016,1707769918882,-951.75,0.00036712,2]
[313888017,1707769918892,-1575.25,0.00036712,2]
[313888018,1707769918902,-1311.14,0.00036712,2]
[313888019,1707769918913,-1386.13,0.00036712,2]
[313888020,1707769918923,-893.85,0.00036712,2]
[313888021,1707769918932,-1280.91,0.00036712,2]
[313888022,1707769918941,-500.0,0.00036712,2]
[313888023,1707769918952,-297.25710641,0.00036712,2]
[313888024,1707769918961,-7777.87,0.00036712,2]
[313888025,1707769918970,-501.05,0.00036712,2]
[313888026,1707769918979,-502.28,0.00036712,2]
[313888027,1707769918989,-814.8,0.00036712,2]
[313888028,1707769918999,-961.32,0.00036712,2]
[313888029,1707769919009,-500.0,0.00036712,2]
[313888030,1707769919018,-551.08,0.00036712,2]
[313888031,1707769919027,-500.0,0.00036712,2]
[313888032,1707769919036,-500.0,0.00036712,2]
[313888033,1707769919045,-812.86,0.00036712,2]
[313888034,1707769919055,-512.59,0.00036712,2]
[313888035,1707769919065,-1261.01,0.00036712,2]
[313888036,1707769919074,-5713.47,0.00036712,2]
[313888037,1707769919083,-5782.92,0.00036712,2]
[313888038,1707769919092,-3592.16,0.00036712,2]
[313888039,1707769919101,-500.0,0.00036712,2]
[313888040,1707769919111,-500.0,0.00036712,2]
[313888041,1707769919120,-1417.96,0.00036712,2]
[313888042,1707769919129,-1507.74,0.00036712,2]
[313888043,1707769919138,-437.9,0.00036712,2]
[313888044,1707769919147,-500.0,0.00036712,2]
[313888045,1707769919157,-2719.11,0.00036712,2]
[313888046,1707769919166,-735.15,0.00036712,2]
[313888047,1707769919175,-1563.36,0.00036712,2]
[313888048,1707769919185,-953.13,0.00036712,2]
[313888049,1707769919194,-1284.95,0.00036712,2]
[313888050,1707769919203,-503.01,0.00036712,2]
[313888051,1707769919213,-705.93,0.00036712,2]
[313888052,1707769919222,-2474.64,0.00036712,2]
[313888053,1707769919231,-2229.26,0.00036712,2]
[313888054,1707769919240,-500.0,0.00036712,2]
[313888055,1707769919249,-1347.04,0.00036712,2]
[313888056,1707769919258,-1299.67,0.00036712,2]
[313888057,1707769919268,-500.0,0.00036712,2]
[313888058,1707769919277,-1798.72,0.00036712,2]
[313888059,1707769919287,-1180.11,0.00036712,2]
[313888060,1707769919297,-2115.54,0.00036712,2]
[313888061,1707769919306,-513.48,0.00036712,2]
[313888062,1707769919315,-500.0,0.00036712,2]
[313888063,1707769919324,-3264.57,0.00036712,2]
[313888064,1707769919333,-3140.53,0.00036712,2]
[313888065,1707769919342,-511.99,0.00036712,2]
[313888066,1707769919351,-4051.49,0.00036712,2]
[313888067,1707769919361,-1799.2,0.00036712,2]
[313888068,1707769919370,-1680.38,0.00036712,2]
[313888069,1707769919380,-978.39,0.00036712,2]
[313888070,1707769919389,-522.7,0.00036712,2]
[313888071,1707769919398,-4240.45,0.00036712,2]
[313888072,1707769919407,-500.0,0.00036712,2]
[313888073,1707769919416,-573.56,0.00036712,2]
[313888074,1707769919426,-151.0,0.00036752,2]
[313888075,1707769919435,-250.49088,0.00036752,2]
[313888076,1707769919443,-267.0,0.00036756,7]
[313888077,1707769919454,-5000.0,0.0003678,23]
[313888078,1707769919463,-100000.0,0.00036794,2]
[313888079,1707769919473,-150.0,0.000368,11]
[313888080,1707769919482,-500.0,0.00036849,10]
[313888081,1707769919491,-152.216947,0.00036879,2]
[313888082,1707769919500,-5977.125637,0.00036879,2]
[313888083,1707769919509,-1149.307006,0.00036879,2]
[313888084,1707769919518,-190.630254,0.00036879,2]
[313888085,1707769919527,-278.190001,0.00036879,2]
[313888086,1707769919537,-5428.373395,0.00036879,2]
[313888087,1707769919546,-326.55931,0.00036879,2]
[313888088,1707769919555,-173.121814,0.00036879,2]
[313888089,1707769919565,-152.747184,0.00036879,2]
[313888090,1707769919577,-173.988218,0.00036879,2]
[313888091,1707769919587,-5000.0,0.0003688,24]
[313888092,1707769919598,-150.0,0.00036887,2]
[313888093,1707769919608,-150.0,0.00036887,2]
[313888094,1707769919617,-150.0,0.00036887,2]
[313888095,1707769919627,-150.0,0.00036887,2]
[313888096,1707769919636,-150.0,0.00036887,2]
[313888097,1707769919646,-300.0,0.00036887,2]
[313888098,1707769919655,-150.0,0.00036887,2]
[313888099,1707769919664,-150.0,0.00036887,2]
[313888100,1707769919674,-150.0,0.00036887,2]
[313888101,1707769919683,-150.0,0.00036887,2]
[313888102,1707769919692,-150.0,0.00036887,2]
[313888103,1707769919702,-150.0,0.00036887,2]
[313888104,1707769919711,-150.0,0.00036887,2]
[313888105,1707769919720,-150.0,0.00036887,2]
[313888106,1707769919729,-150.0,0.00036887,2]
[313888107,1707769919739,-150.0,0.00036887,2]
[313888108,1707769919749,-150.0,0.00036887,2]
[313888109,1707769919759,-238.95,0.00036887,2]
[313888110,1707769919768,-150.0,0.00036887,2]
[313888111,1707769919777,-35674.71,0.000369,7]
[313888112,1707769919787,-2248.32,0.000369,7]
[313888113,1707769919796,-14641.06,0.000369,7]
[313888114,1707769919807,-15193.75,0.0003692,2]
[313888115,1707769919817,-15193.75,0.0003692,2]
[313888116,1707769919827,-15193.75,0.0003692,2]
[313888117,1707769919836,-15193.75,0.0003692,2]
[313888118,1707769919846,-15193.75,0.0003692,2]
[313888119,1707769919855,-15193.75,0.0003692,2]
[313888120,1707769919866,-15193.75,0.0003692,2]
[313888121,1707769919875,-15193.75,0.0003692,2]
[313888122,1707769919884,-15193.75,0.0003692,2]
[313888123,1707769919894,-15193.75,0.0003692,2]
[313888124,1707769919903,-15193.75,0.0003692,2]
[313888125,1707769919914,-15193.75,0.0003692,2]
[313888126,1707769919923,-15193.75,0.0003692,2]
[313888127,1707769919933,-15193.75,0.0003692,2]
[313888128,1707769919945,-15193.75,0.0003692,2]
[313888129,1707769919954,-15193.83101205,0.0003692,2]
[313888130,1707769919964,-165.37,0.00036971,2]
[313888131,1707769919973,-5000.0,0.0003698,25]
[313888132,1707769919983,-500.0,0.00036986,2]
[313888133,1707769919992,-500.0,0.00036986,2]
[313888134,1707769920002,-436.6,0.00036986,2]
[313888135,1707769920011,-251.67591077,0.00036986,2]
[313888136,1707769920020,-500.0,0.00036986,2]
[313888137,1707769920030,-332.50322597,0.00036986,2]
[313888138,1707769920039,-500.0,0.00036986,2]
[313888139,1707769920049,-150.0,0.00036986,2]
[313888140,1707769920059,-300.0,0.00036986,7]
[313888141,1707769920070,-450.0,0.00036986,12]
[313888142,1707769920079,-171.36106261,0.00036986,17]
[313888143,1707769920088,-500.0,0.00036986,2]
[313888144,1707769920098,-500.0,0.00036986,2]
[313888145,1707769920107,-966.32,0.00036986,2]
[313888146,1707769920116,-500.0,0.00036986,2]
[313888147,1707769920125,-807.54,0.00036986,2]
[313888148,1707769920135,-500.0,0.00036986,2]
[313888149,1707769920146,-266.61,0.00036986,2]
[313888150,1707769920155,-500.0,0.00036986,2]
[313888151,1707769920165,-509.91,0.00036986,2]
[313888152,1707769920174,-500.0,0.00036986,2]
[313888153,1707769920184,-500.0,0.00036986,2]
[313888154,1707769920193,-500.22,0.00036986,2]
[313888155,1707769920204,-580.77,0.00036986,2]
[313888156,1707769920213,-500.0,0.00036986,2]
[313888157,1707769920223,-952.06,0.00036986,2]
[313888158,1707769920232,-500.0,0.00036986,2]
[313888159,1707769920242,-500.0,0.00036986,2]
[313888160,1707769920252,-500.0,0.00036986,2]
[313888161,1707769920261,-500.0,0.00036986,2]
[313888162,1707769920271,-538.47,0.00036986,2]
[313888163,1707769920281,-500.0,0.00036986,2]
[313888164,1707769920290,-1235.07,0.00036986,2]
[313888165,1707769920508,-500.0,0.00036986,2]
[313888166,1707769920517,-1080.75,0.00036986,2]
[313888167,1707769920527,-728.15,0.00036986,2]
[313888168,1707769920537,-796.14,0.00036986,2]
[313888169,1707769920547,-588.98,0.00036986,2]
[313888170,1707769920557,-5409.76,0.00036986,2]
[313888171,1707769920568,-414.0,0.00036986,2]
[313888172,1707769920581,-500.0,0.00036986,2]
[313888173,1707769920591,-1331.32,0.00036986,2]
[313888174,1707769920600,-917.05,0.00036986,2]
[313888175,1707769920610,-3280.01,0.00036986,2]
[313888176,1707769920619,-9977.66,0.00036986,2]
[313888177,1707769920630,-500.0,0.00036986,2]
[313888178,1707769920640,-4143.77,0.00036986,2]
[313888179,1707769920650,-5964.37,0.00036986,2]
[313888180,1707769920661,-695.09,0.00036986,2]
[313888181,1707769920671,-561.48,0.00036986,2]
[313888182,1707769920680,-843.63,0.00036986,2]
[313888183,1707769920689,-984.81,0.00036986,2]
[313888184,1707769920698,-1158.95,0.00036986,2]
[313888185,1707769920708,-500.0,0.00036986,2]
[313888186,1707769920717,-500.0,0.00036986,2]
[313888187,1707769920727,-521.45,0.00036986,2]
[313888188,1707769920736,-2406.89,0.00036986,2]
[313888189,1707769920745,-578.56,0.00036986,2]
[313888190,1707769920754,-819.76,0.00036986,2]
[313888191,1707769920763,-500.0,0.00036986,2]
[313888192,1707769920773,-1375.77,0.00036986,2]
[313888193,1707769920783,-4244.4,0.00036986,2]
[313888194,1707769920792,-500.0,0.00036986,2]
[313888195,1707769920802,-500.0,0.00036986,2]
[313888196,1707769920811,-500.0,0.00036986,2]
[313888197,1707769920821,-391.47526963,0.00036986,2]
[313888198,1707769920831,-846.93,0.00036986,2]
[313888199,1707769920840,-3071.04,0.00036986,2]
[313888200,1707769920850,-728.9,0.00036986,2]
[313888201,1707769920859,-616.73,0.00036986,2]
[313888202,1707769920869,-500.0,0.00036986,2]
[313888203,1707769920879,-560.54,0.00036986,2]
[313888204,1707769920889,-1820.56,0.00036986,2]
[313888205,1707769920898,-743.91,0.00036986,2]
[313888206,1707769920908,-500.0,0.00036986,2]
[313888207,1707769920917,-735.16,0.00036986,2]
[313888208,1707769920926,-1028.39,0.00036986,2]
[313888209,1707769920935,-1049.27,0.00036986,2]
[313888210,1707769920945,-286.42,0.00036986,2]
[313888211,1707769920955,-4338.57,0.00036986,2]
[313888212,1707769920964,-2013.56,0.00036986,2]
[313888213,1707769920974,-1012.67,0.00036986,2]
[313888214,1707769920984,-1445.06,0.00036986,2]
[313888215,1707769920993,-500.0,0.00036986,2]
[313888216,1707769921002,-500.0,0.00036986,2]
[313888217,1707769921012,-1677.14,0.00036986,2]
[313888218,1707769921022,-951.75,0.00036986,2]
[313888219,1707769921032,-1575.25,0.00036986,2]
[313888220,1707769921042,-1311.14,0.00036986,2]
[313888221,1707769921052,-1386.13,0.00036986,2]
[313888222,1707769921063,-893.85,0.00036986,2]
[313888223,1707769921073,-1280.91,0.00036986,2]
[313888224,1707769921082,-500.0,0.00036986,2]
[313888225,1707769921091,-7777.87,0.00036986,2]
[313888226,1707769921100,-501.05,0.00036986,2]
[313888227,1707769921111,-502.28,0.00036986,2]
[313888228,1707769921121,-814.8,0.00036986,2]
[313888229,1707769921132,-961.32,0.00036986,2]
[313888230,1707769921142,-500.0,0.00036986,2]
[313888231,1707769921151,-551.08,0.00036986,2]
[313888232,1707769921162,-409.11547233,0.00036986,2]
[313888233,1707769921171,-500.0,0.00036986,2]
[313888234,1707769921181,-812.86,0.00036986,2]
[313888235,1707769921192,-512.59,0.00036986,2]
[313888236,1707769921204,-1261.01,0.00036986,2]
[313888237,1707769921213,-5713.47,0.00036986,2]
[313888238,1707769921222,-5782.92,0.00036986,2]
[313888239,1707769921232,-3592.16,0.00036986,2]
[313888240,1707769921242,-500.0,0.00036986,2]
[313888241,1707769921251,-1417.96,0.00036986,2]
[313888242,1707769921260,-500.0,0.00036986,2]
[313888243,1707769921269,-1507.74,0.00036986,2]
[313888244,1707769921278,-500.0,0.00036986,2]
[313888245,1707769921287,-2719.11,0.00036986,2]
[313888246,1707769921297,-735.15,0.00036986,2]
[313888247,1707769921306,-1563.36,0.00036986,2]
[313888248,1707769921316,-953.13,0.00036986,2]
[313888249,1707769921326,-1284.95,0.00036986,2]
[313888250,1707769921338,-503.01,0.00036986,2]
[313888251,1707769921347,-705.93,0.00036986,2]
[313888252,1707769921358,-2474.64,0.00036986,2]
[313888253,1707769921367,-2229.26,0.00036986,2]
[313888254,1707769921376,-632.48,0.00036986,2]
[313888255,1707769921385,-1299.67,0.00036986,2]
[313888256,1707769921395,-1347.04,0.00036986,2]
[313888257,1707769921403,-500.0,0.00036986,2]
[313888258,1707769921413,-1798.72,0.00036986,2]
[313888259,1707769921423,-1180.11,0.00036986,2]
[313888260,1707769921433,-2115.54,0.00036986,2]
[313888261,1707769921443,-513.48,0.00036986,2]
[313888262,1707769921453,-500.0,0.00036986,2]
[313888263,1707769921462,-3264.57,0.00036986,2]
[313888264,1707769921472,-3140.53,0.00036986,2]
[313888265,1707769921482,-511.99,0.00036986,2]
[313888266,1707769921492,-4051.49,0.00036986,2]
[313888267,1707769921501,-1799.2,0.00036986,2]
[313888268,1707769921511,-1680.38,0.00036986,2]
[313888269,1707769921520,-978.39,0.00036986,2]
[313888270,1707769921529,-522.7,0.00036986,2]
[313888271,1707769921538,-4240.45,0.00036986,2]
[313888272,1707769921547,-500.0,0.00036986,2]
[313888273,1707769921557,-573.56,0.00036986,2]
[313888274,1707769921572,-1879787.1,0.00036986,2]
[313888275,1707769921584,-84354.21282696,0.00036986,2]
[313888276,1707769921593,-500.0,0.00036987,3]
[313888277,1707769921602,-50000.0,0.00037,7]
[313888278,1707769921611,-311.99955575,0.00037,4]
[313888279,1707769921621,-4000.0,0.00037,5]
[313888280,1707769921630,-300.0,0.00037,38]
[313888281,1707769921639,-151.0,0.00037,30]
[313888282,1707769921648,-200.0,0.00037,120]
[313888283,1707769921657,-10000.0,0.00037,8]
[313888284,1707769921666,-12587.0,0.00037,2]
[313888285,1707769921676,-150.0,0.00037,112]
[313888286,1707769921686,-679.0,0.00037,7]
[313888287,1707769921695,-10000.0,0.00037,10]
[313888288,1707769921706,-500.0,0.00037,2]
[313888289,1707769921715,-65676.78493628,0.00037,12]
[313888290,1707769921725,-11600.55,0.00037,3]
[313888291,1707769921734,-200.0,0.00037,11]
[313888292,1707769921743,-4295.609654,0.00037,5]
[313888293,1707769921753,-2916.0,0.00037,15]
[313888294,1707769921762,-10000.0,0.00037,15]
[313888295,1707769921772,-10000.0,0.00037,15]
[313888296,1707769921781,-10000.0,0.00037,15]
[313888297,1707769921791,-10000.0,0.00037,15]
[313888298,1707769921801,-10000.0,0.00037,15]
[313888299,1707769921810,-10000.0,0.00037,15]
[313888300,1707769921819,-10000.0,0.00037,15]
[313888301,1707769921829,-10000.0,0.00037,15]
[313888302,1707769921838,-10000.0,0.00037,15]
[313888303,1707769921848,-12361.0,0.00037,15]
[313888304,1707769921858,-2032.0,0.00037,15]
[313888305,1707769921868,-10000.0,0.00037,15]
[313888306,1707769921878,-12122.0,0.00037,15]
[313888307,1707769921887,-10000.0,0.00037,15]
[313888308,1707769921898,-10948.0,0.00037,15]
[313888309,1707769921907,-913.0,0.00037,15]
[313888310,1707769921917,-150.0,0.00037,11]
[313888311,1707769921926,-10000.0,0.00037075,2]
[313888312,1707769921936,-5000.0,0.0003708,26]
[313888313,1707769921947,-5622.55208962,0.00037083,6]
[313888314,1707769921957,-155.0,0.0003712,2]
[313888315,1707769921966,-2429.40002372,0.0003713,2]
[313888316,1707769921976,-1000.0,0.00037137,2]
[313888317,1707769921987,-1824.97539,0.00037144,2]
[313888318,1707769922003,-1003.0,0.00037148,2]
[313888319,1707769922019,-237.0,0.00037148,2]
[313888320,1707769922030,-198.839,0.00037148,2]
[313888321,1707769922039,-429.0,0.00037148,2]
[313888322,1707769922049,-1947.0,0.00037148,2]
[313888323,1707769922058,-1138.0,0.00037148,2]
[313888324,1707769922067,-321.0,0.00037148,2]
[313888325,1707769922077,-858.0,0.00037148,2]
[313888326,1707769922086,-150.0,0.00037148,2]
[313888327,1707769922095,-343.0,0.00037148,2]
[313888328,1707769922105,-2287.0,0.00037148,2]
[313888329,1707769922114,-7409.0,0.00037148,2]